bitfinex/quotes_ETHUSD_20240618
["timestamp","ask_amount","ask_price","bid_price","bid_amount"]
[1718734126623,2.93094,3411.9,3411.3,2.358]
[1718734126833,2.93094,3411.9,3411.2,2.93151]
[1718734127053,2.93104,3411.8,3411.1,2.9316]
[1718734127232,2.93104,3411.8,3411.2,0.55]
[1718734127859,2.93124,3411.6,3411.3,2.93142]
[1718734128230,2.93101,3411.8,3411.4,2.93133]
[1718734131063,5.86232,3411.7,3411.4,2.93134]
[1718734131268,2.93116,3411.7,3411.4,2.93134]
[1718734131567,2.93117,3411.6,3411.3,2.93141]
[1718734131865,2.93138,3411.4,3410.8,2.93182]
[1718734132073,2.93118,3411.6,3410.8,2.93182]
[1718734132074,2.93113,3411.7,3410.8,0.46978671]
[1718734132234,9.3193,3412.2,3411.6,2.93116]
[1718734132235,2.93084,3412.0,3411.6,2.93116]
[1718734132439,2.93093,3411.9,3411.6,2.93116]
[1718734132664,2.93093,3411.9,3411.5,2.93124]
[1718734133170,2.93102,3411.8,3411.4,2.93133]
[1718734133368,2.93093,3411.9,3411.5,2.9312]
[1718734133666,2.93093,3411.9,3411.6,2.93117]
[1718734133874,2.93093,3411.9,3411.5,2.93124]
[1718734134257,2.93083,3412.0,3411.5,2.93124]
[1718734134258,2.93101,3411.8,3411.5,2.93124]
[1718734134464,5.93092,3411.9,3411.4,2.93132]
[1718734134663,2.93101,3411.8,3411.5,2.93125]
[1718734135300,2.93101,3411.8,3411.4,2.93132]
[1718734135869,2.93101,3411.8,3411.5,2.93125]
[1718734136411,2.93101,3411.8,3411.4,2.93133]
[1718734138461,2.93109,3411.7,3411.4,2.93133]
[1718734138662,2.9312,3411.6,3411.3,2.93135]
[1718734139323,2.93093,3411.9,3411.6,2.93117]
[1718734139609,2.931,3411.8,3411.2,2.93151]
[1718734139759,2.93093,3411.9,3411.5,2.93117]
[1718734140278,2.93105,3411.8,3411.5,2.93117]
[1718734140481,2.93093,3411.9,3411.6,2.93115]
[1718734140697,2.93093,3411.9,3411.4,2.93133]
[1718734140698,2.93093,3411.9,3411.5,2.93123]
[1718734141080,2.93101,3411.8,3411.5,2.93123]
[1718734141385,2.93093,3411.9,3411.5,2.93118]
[1718734141585,0.50735875,3412.1,3411.6,0.02897753]
[1718734141801,2.93057,3412.3,3411.9,2.93085]
[1718734141972,2.93051,3412.4,3411.9,2.93085]
[1718734142159,2.93064,3412.3,3411.9,2.93085]
[1718734142364,2.93059,3412.3,3411.9,2.93085]
[1718734142760,2.93059,3412.3,3412.0,2.93082]
[1718734143199,4.32226862,3412.5,3412.0,2.93082]
[1718734143200,4.82948063,3412.6,3412.3,2.93055]
[1718734143407,8.41185862,3412.7,3411.6,2.9868]
[1718734143617,2.93057,3412.3,3411.6,3.4811]
[1718734143798,3.0,3412.6,3411.1,2.4368]
[1718734143799,2.9308,3412.1,3411.3,2.93137]
[1718734144014,2.9308,3412.1,3411.4,2.93133]
[1718734144015,2.93115,3411.7,3411.4,2.93133]
[1718734144316,2.93102,3411.8,3411.5,2.93124]
[1718734145182,2.93102,3411.8,3410.8,7.849236]
[1718734145183,4.32281862,3411.9,3410.7,2.93193]
[1718734145500,4.32281862,3411.9,3410.6,2.4755]
[1718734145501,2.93135,3411.4,3411.1,2.93159]
[1718734145707,2.93128,3411.5,3410.8,2.93186]
[1718734145895,2.93144,3411.3,3410.8,2.93186]
[1718734146207,2.93144,3411.3,3410.5,2.93211]
[1718734146392,2.9317,3411.0,3410.5,2.93211]
[1718734146703,4.32329862,3411.3,3410.9,2.93177]
[1718734147004,2.9317,3411.0,3410.6,2.93195]
[1718734147201,2.9317,3411.0,3410.7,2.93192]
[1718734147364,2.93219,3410.5,3409.9,2.93262]
[1718734147571,1.3922526,3410.6,3410.3,2.93223]
[1718734147769,4.3241126,3410.8,3410.3,2.93223]
[1718734147979,4.3241126,3410.8,3410.1,2.93241]
[1718734147980,2.93205,3410.6,3410.2,2.93237]
[1718734148197,2.93239,3410.2,3409.9,2.93262]
[1718734148601,2.93239,3410.2,3409.8,2.93271]
[1718734149272,2.9323,3410.3,3410.0,2.93254]
[1718734149601,2.9323,3410.3,3409.8,2.93271]
[1718734149602,1.8998239,3410.8,3410.6,2.93203]
[1718734149789,1.99485047,3411.1,3410.6,0.879631]
[1718734149998,1.39227637,3411.2,3410.7,2.93194]
[1718734150190,0.6025741,3411.2,3410.7,2.93194]
[1718734150805,2.93169,3411.0,3410.7,2.93194]
[1718734151303,3.5341641,3411.2,3410.9,2.93177]
[1718734151491,0.6025741,3411.2,3410.9,2.93177]
[1718734151694,3.5340041,3411.3,3410.9,2.93177]
[1718734152201,0.90386116,3411.4,3410.7,2.93194]
[1718734152202,0.6025741,3411.2,3410.7,2.93194]
[1718734152401,0.90386116,3411.4,3410.7,2.93194]
[1718734152402,3.5341841,3411.1,3410.7,2.93191]
[1718734152782,0.6025741,3411.1,3410.9,2.93169]
[1718734153131,0.6025741,3411.4,3411.2,2.93151]
[1718734153308,0.6025741,3411.4,3411.0,3.48164]
[1718734153477,2.93143,3411.3,3411.0,3.48164]
[1718734153677,3.5340041,3411.3,3411.0,3.48164]
[1718734154001,0.6025741,3411.4,3411.0,3.48164]
[1718734154222,0.6025741,3411.3,3411.0,3.4816]
[1718734155090,0.6025741,3411.3,3411.1,2.93159]
[1718734155477,0.6025741,3411.3,3411.2,5.86302]
[1718734156511,0.6025741,3411.3,3411.2,2.93151]
[1718734156717,0.6025741,3411.3,3411.2,5.86302]
[1718734156949,0.6025741,3411.3,3411.2,6.41302]
[1718734157157,0.6025741,3411.3,3411.2,9.34453]
[1718734157358,0.6025741,3411.3,3411.2,10.3382107]
[1718734157639,0.6025741,3411.6,3411.4,2.93134]
[1718734157802,0.6025741,3411.6,3411.5,5.86252]
[1718734158004,0.6025741,3411.9,3411.5,0.55]
[1718734158236,0.6025741,3411.9,3411.8,5.862]
[1718734158715,0.90386116,3412.1,3411.8,5.862]
[1718734158716,0.60653977,3412.0,3411.9,2.93091]
[1718734159049,0.60653977,3412.0,3411.9,5.86182]
[1718734159213,0.60653977,3412.0,3411.9,6.41182]
[1718734159425,0.60653977,3412.1,3412.0,2.93083]
[1718734159628,0.90386116,3412.2,3412.0,2.93083]
[1718734159957,0.60656266,3412.1,3412.0,2.93083]
[1718734160113,0.90386116,3412.2,3412.0,2.93083]
[1718734161749,0.90386116,3412.2,3412.1,5.86148]
[1718734162053,0.90386116,3412.3,3412.2,5.86132]
[1718734162830,0.90386116,3412.4,3412.3,2.93057]
[1718734163258,1.20514821,3412.5,3412.3,2.93057]
[1718734163765,1.20514821,3412.5,3412.4,2.93048]
[1718734164263,1.51507306,3412.6,3412.4,2.93048]
[1718734164851,1.21336999,3412.5,3412.4,2.93048]
[1718734165354,1.21336999,3412.6,3412.5,2.9304]
[1718734167920,1.21336999,3412.7,3412.6,2.93031]
[1718734168455,0.91049877,3412.8,3412.7,8.79069]
[1718734168635,0.60700725,3412.9,3412.8,5.86028]
[1718734168829,0.91049877,3413.0,3412.8,5.86028]
[1718734168830,0.91049877,3413.0,3412.9,2.93005]
[1718734169033,0.91049877,3413.1,3413.0,5.85994]
[1718734169347,0.91049877,3413.1,3412.8,2.93005]
[1718734169541,0.91051128,3413.0,3412.9,2.92999]
[1718734169920,0.91051128,3413.1,3413.0,2.92997]
[1718734170627,0.91051128,3413.2,3413.1,2.92988]
[1718734171251,0.91051128,3413.2,3413.1,5.85976]
[1718734171457,0.91051128,3413.3,3413.2,2.9298]
[1718734171832,0.91051128,3413.4,3413.3,5.85942]
[1718734172039,0.91051128,3413.5,3413.3,2.92971]
[1718734172355,0.60643555,3413.4,3413.3,5.85942]
[1718734172950,0.60643555,3413.4,3413.2,2.92979]
[1718734173166,0.60643555,3413.4,3412.8,2.9301]
[1718734173331,0.60612365,3413.2,3412.8,2.93013]
[1718734173671,2.92997,3413.0,3412.5,2.93032]
[1718734173848,3.53626365,3412.8,3412.3,2.9305]
[1718734174035,3.53626365,3412.8,3411.6,7.33]
[1718734174036,2.93041,3412.5,3412.0,2.93082]
[1718734174234,2.93041,3412.5,3411.6,7.33]
[1718734174235,1.51663493,3412.4,3411.6,0.74827472]
[1718734174462,0.60612365,3412.1,3411.8,2.93093]
[1718734174667,2.931,3411.8,3411.3,2.93143]
[1718734174866,0.60612365,3412.0,3411.4,2.93126]
[1718734174867,3.53712365,3411.9,3411.4,2.93126]
[1718734175050,3.53706365,3411.9,3411.5,2.93123]
[1718734175247,0.60612365,3411.9,3411.8,2.931]
[1718734176078,0.91051128,3412.1,3411.8,0.586223]
[1718734176079,0.60612365,3412.1,3411.8,0.586223]
[1718734176282,0.60612365,3412.5,3412.3,2.93057]
[1718734176579,0.60612365,3412.8,3412.7,2.93023]
[1718734176899,0.60612365,3412.9,3412.7,2.93022]
[1718734177067,0.60612365,3412.9,3412.5,2.93031]
[1718734177068,0.60612365,3412.8,3412.5,2.93031]
[1718734177384,0.60612365,3412.8,3412.7,2.93023]
[1718734177606,0.60612365,3412.9,3412.8,2.93014]
[1718734177894,0.60612365,3413.0,3412.9,2.93005]
[1718734178467,0.60612365,3413.0,3412.9,5.8601]
[1718734178677,0.60612365,3413.2,3413.0,2.92997]
[1718734178881,0.60612365,3413.1,3413.0,2.92997]
[1718734179057,0.60638854,3413.2,3413.1,2.92988]
[1718734179256,0.60638854,3413.3,3413.2,2.9298]
[1718734179661,0.60638854,3413.4,3413.2,2.9298]
[1718734180359,0.60638854,3413.6,3413.4,2.92963]
[1718734180569,0.60638854,3413.6,3413.5,2.92954]
[1718734180902,0.60638854,3413.6,3412.9,2.93001]
[1718734181200,0.60638854,3413.4,3413.3,2.92971]
[1718734181398,0.60638854,3413.6,3413.4,2.92963]
[1718734181569,0.91051128,3413.7,3413.4,2.92963]
[1718734181570,0.60638854,3413.7,3413.5,2.92954]
[1718734181769,0.60638854,3413.7,3413.6,2.92945]
[1718734181965,0.60638854,3413.7,3413.5,2.92953]
[1718734182172,0.60638854,3413.7,3413.3,2.92965]
[1718734182597,0.60638854,3413.7,3413.5,2.92953]
[1718734183093,0.60638854,3413.7,3413.6,2.92945]
[1718734183402,0.60638854,3413.8,3413.2,2.92974]
[1718734183575,0.60638854,3413.8,3413.5,2.92946]
[1718734184359,6.53565854,3413.9,3413.5,2.92946]
[1718734184593,0.60638854,3413.8,3413.6,2.92944]
[1718734184905,0.60638854,3413.8,3413.5,2.92953]
[1718734185111,0.60638854,3413.9,3413.6,2.92944]
[1718734185259,2.92922,3413.9,3413.5,2.92953]
[1718734185464,3.53551854,3414.0,3413.6,2.92945]
[1718734186187,0.07642695,3413.9,3413.6,2.92945]
[1718734186499,0.60638854,3414.0,3413.7,2.92934]
[1718734186676,0.68281505,3414.0,3413.7,2.92934]
[1718734187173,0.68281505,3414.0,3413.4,2.92957]
[1718734187373,0.60638854,3414.0,3413.4,2.92957]
[1718734187586,0.60638854,3414.0,3413.9,2.9292]
[1718734187761,0.60638854,3414.3,3413.9,2.9292]
[1718734187961,0.0764193,3414.3,3414.0,2.92909]
[1718734188192,0.07641944,3414.3,3414.0,2.92909]
[1718734188598,3.53516854,3414.4,3414.0,2.92909]
[1718734189196,3.53516854,3414.4,3413.6,2.92943]
[1718734189197,3.53507854,3414.5,3414.1,2.92901]
[1718734189363,2.92879,3414.4,3414.1,2.92901]
[1718734190313,2.92869,3414.5,3413.8,2.92928]
[1718734191109,0.60638854,3414.7,3414.4,2.92875]
[1718734191310,0.60638854,3414.7,3414.0,2.92908]
[1718734191311,6.53489854,3414.8,3414.3,2.92884]
[1718734191616,6.53489854,3414.8,3414.2,2.92893]
[1718734191617,2.92868,3414.5,3414.2,2.92893]
[1718734191995,3.0,3414.8,3413.1,5.3829]
[1718734192203,2.92887,3414.3,3413.9,2.92913]
[1718734193114,2.92887,3414.3,3413.8,2.92927]
[1718734193315,2.92935,3413.8,3412.6,6.4803]
[1718734193480,2.92952,3413.6,3413.2,2.92973]
[1718734193677,2.92939,3413.7,3413.3,2.9297]
[1718734193907,2.92946,3413.6,3413.2,2.92978]
[1718734194095,2.92946,3413.6,3413.1,2.92981]
[1718734194294,2.92946,3413.6,3413.2,2.92978]
[1718734194497,5.23570829,3414.0,3413.4,2.92955]
[1718734194498,0.60638854,3413.8,3413.4,2.92955]
[1718734194702,2.92922,3413.9,3413.4,2.92955]
[1718734194898,2.92922,3413.9,3413.5,2.92953]
[1718734195217,3.53541854,3414.1,3413.6,2.92944]
[1718734195423,2.92912,3414.0,3413.7,2.92929]
[1718734195919,3.53541854,3414.1,3413.7,2.92929]
[1718734196218,2.92903,3414.1,3413.7,2.92929]
[1718734196511,0.60638854,3414.1,3413.3,2.92966]
[1718734196681,3.53542854,3414.1,3413.6,2.92944]
[1718734196881,0.60638854,3414.1,3413.8,2.92922]
[1718734197102,3.6828135,3414.2,3413.8,2.92922]
[1718734197302,3.00546496,3414.1,3413.8,2.92922]
[1718734197502,3.00546496,3414.1,3413.6,2.92944]
[1718734197503,0.60638854,3414.1,3413.7,2.9293]
[1718734197702,0.60638854,3414.0,3413.8,0.55]
[1718734197935,0.07642645,3414.1,3413.8,3.47926]
[1718734197936,0.68281499,3414.1,3413.8,3.47926]
[1718734198138,0.68281499,3414.1,3414.0,2.92911]
[1718734198339,0.60638854,3414.2,3414.0,3.47911]
[1718734198513,0.60638854,3414.4,3414.1,2.92895]
[1718734198717,3.53508854,3414.5,3414.2,2.92891]
[1718734199225,0.07641565,3414.4,3414.2,2.92891]
[1718734199403,0.07641565,3414.4,3413.9,5.41621]
[1718734199606,3.53517854,3414.4,3414.1,2.92901]
[1718734199920,3.53507854,3414.5,3414.1,2.92901]
[1718734200124,0.07641477,3414.4,3414.1,2.92901]
[1718734200430,0.68280331,3414.4,3414.2,2.92893]
[1718734200746,0.68280331,3414.4,3414.3,2.92885]
[1718734200931,3.61149331,3414.5,3414.2,2.92892]
[1718734201138,3.00524477,3414.4,3413.9,2.92919]
[1718734201347,3.61163331,3414.4,3414.0,0.55]
[1718734201649,0.07641477,3414.3,3414.1,2.92902]
[1718734201805,3.53521854,3414.4,3414.1,2.92902]
[1718734202021,0.07641513,3414.3,3414.1,2.92902]
[1718734202326,0.68280367,3414.3,3414.1,2.92902]
[1718734203236,0.68280367,3414.4,3414.2,2.92894]
[1718734203552,0.60638854,3414.3,3414.2,2.92894]
[1718734203952,2.92914,3414.0,3413.5,2.92954]
[1718734204123,2.92912,3414.0,3413.4,2.92961]
[1718734204320,0.07642366,3413.9,3413.2,2.92972]
[1718734204543,0.07642366,3413.9,3413.7,2.9293]
[1718734204544,0.6828122,3413.9,3413.7,2.9293]
[1718734204740,0.91051128,3414.1,3413.8,2.92928]
[1718734204741,0.60638854,3414.0,3413.8,2.92928]
[1718734204931,0.60638854,3414.0,3413.6,2.92944]
[1718734204932,0.68281109,3414.0,3413.6,2.92944]
[1718734205129,2.92948,3413.6,3412.9,2.2854]
[1718734205361,2.92964,3413.4,3413.0,2.9299]
[1718734205562,3.53584854,3413.6,3413.3,2.92971]
[1718734205732,0.68282315,3413.5,3413.2,2.92977]
[1718734206161,3.61237315,3413.5,3413.2,2.92977]
[1718734206360,0.68282315,3413.4,3413.2,2.92977]
[1718734206567,0.07643461,3413.4,3413.3,8.78913]
[1718734206750,0.91051128,3413.7,3413.2,0.878973]
[1718734206751,0.60638854,3413.9,3413.8,2.92928]
[1718734207071,0.60638854,3413.9,3413.7,2.92931]
[1718734207267,0.60638854,3413.8,3413.7,2.92931]
[1718734207465,0.60638854,3413.9,3413.7,2.92931]
[1718734207668,0.68281127,3413.9,3413.8,2.92928]
[1718734207870,0.60638854,3414.1,3413.9,2.9292]
[1718734208077,0.60638854,3414.0,3413.9,2.9292]
[1718734208370,2.92917,3414.0,3413.6,2.92945]
[1718734208673,2.92917,3414.0,3413.7,3.47935]
[1718734208674,3.53555854,3414.0,3413.7,3.47935]
[1718734208872,0.60638854,3414.0,3413.8,2.92926]
[1718734209092,0.60638854,3414.1,3414.0,5.85822]
[1718734209376,0.60638854,3414.1,3414.0,3.47911]
[1718734209377,0.68280735,3414.1,3414.0,3.47911]
[1718734209591,0.60638854,3414.1,3414.0,3.47911]
[1718734210093,0.68280735,3414.2,3414.1,2.92902]
[1718734210395,0.60638854,3414.3,3414.2,5.85788]
[1718734210804,0.60638854,3414.4,3414.3,2.92885]
[1718734211089,0.60754094,3414.4,3414.3,3.47885]
[1718734211390,0.60754094,3414.4,3414.3,10.325224]
[1718734211692,0.98692102,3414.6,3414.4,5.85754]
[1718734211693,0.60754094,3414.5,3414.4,5.85754]
[1718734211990,0.60754094,3414.5,3414.4,6.40754]
[1718734212188,0.98692102,3414.6,3414.4,6.40754]
[1718734212189,0.60754094,3414.6,3414.4,10.269954]
[1718734212389,0.60754094,3414.9,3414.7,2.92851]
[1718734212691,0.60754094,3414.9,3414.8,5.85684]
[1718734212857,0.91051128,3415.1,3414.9,2.92834]
[1718734213054,0.98690719,3415.0,3414.9,2.92834]
[1718734213281,0.07639591,3415.0,3414.9,3.47834]
[1718734213480,0.91051128,3415.0,3414.7,2.92844]
[1718734213720,0.98690719,3415.0,3414.9,2.92834]
[1718734213888,0.91051128,3415.1,3415.0,2.92825]
[1718734214285,0.07639728,3415.1,3415.0,5.8565]
[1718734214785,0.91051128,3415.3,3415.0,5.8565]
[1718734214786,0.99339659,3415.3,3415.2,5.85616]
[1718734214984,0.91145752,3415.4,3415.2,3.47808]
[1718734215219,0.91145752,3415.5,3415.4,2.92791]
[1718734215427,3.7985288,3415.9,3415.4,2.92791]
[1718734215428,0.91145752,3415.8,3415.4,4.118501]
[1718734215596,0.91145752,3415.9,3415.8,2.92757]
[1718734215924,0.91145752,3415.9,3415.8,5.85514]
[1718734215925,0.08181025,3415.9,3415.8,5.85514]
[1718734216219,0.006,3416.1,3416.0,11.1186]
[1718734216395,0.006,3416.1,3416.0,11.6686]
[1718734216727,0.006,3416.1,3416.0,16.1984352]
[1718734217517,0.006,3416.1,3416.0,2.9274]
[1718734217885,0.006,3416.1,3415.8,2.92756]
[1718734218085,0.006,3416.1,3415.6,2.92774]
[1718734218490,0.006,3416.1,3415.8,2.92755]
[1718734218725,0.006,3416.1,3416.0,2.9274]
[1718734218920,0.006,3416.1,3416.0,9.367695]
[1718734219107,0.006,3416.1,3416.0,6.440295]
[1718734219513,0.006,3416.1,3416.0,6.990295]
[1718734219897,0.006,3416.1,3416.0,9.917695]
[1718734220806,2.92636,3417.3,3416.3,5.85412]
[1718734220807,0.91145752,3417.3,3416.3,5.85412]
[1718734220991,2.9259,3417.8,3416.6,2.92688]
[1718734221195,0.91145752,3418.0,3417.4,2.92619]
[1718734221540,0.91145752,3418.0,3417.3,2.92628]
[1718734221541,2.92579,3417.9,3417.3,2.92628]
[1718734221689,2.92579,3417.9,3417.5,2.9261]
[1718734221890,2.92579,3417.9,3417.6,2.92601]
[1718734222124,2.92579,3417.9,3416.8,2.3347]
[1718734222125,2.92608,3417.6,3416.8,2.92671]
[1718734222325,2.92608,3417.6,3416.7,0.7355017]
[1718734222326,2.92585,3417.9,3417.4,2.92618]
[1718734222527,2.92585,3417.9,3417.5,2.9261]
[1718734222824,2.9256,3418.1,3417.3,2.92628]
[1718734222825,2.92576,3418.0,3417.3,2.92628]
[1718734223032,0.60571393,3418.1,3417.4,0.55]
[1718734223324,2.92534,3418.4,3417.5,2.92605]
[1718734223526,3.53073393,3418.8,3417.7,2.92592]
[1718734223527,3.0,3418.8,3417.7,2.92592]
[1718734223690,2.92534,3418.4,3418.1,2.92552]
[1718734223890,2.92559,3418.2,3417.8,2.92585]
[1718734224143,2.92543,3418.3,3417.8,2.92585]
[1718734224289,2.92527,3418.5,3417.6,0.55]
[1718734224489,0.60571393,3418.8,3417.5,2.92608]
[1718734224708,0.91145752,3419.0,3417.0,2.92645]
[1718734224709,2.92621,3417.4,3417.0,2.92645]
[1718734224947,7.02,3418.1,3416.6,5.3289]
[1718734225120,2.92662,3417.0,3416.6,2.86]
[1718734225316,2.92628,3417.3,3416.8,2.92669]
[1718734225639,2.92637,3417.2,3416.7,2.92679]
[1718734225845,2.92605,3417.6,3417.0,2.92653]
[1718734226046,2.92594,3417.7,3417.1,2.92638]
[1718734226337,2.92611,3417.5,3417.1,2.92638]
[1718734226740,5.92573,3418.0,3417.5,2.92608]
[1718734226741,3.0,3418.0,3417.5,2.92608]
[1718734226954,2.92601,3417.7,3416.9,2.92662]
[1718734227176,3.0,3418.0,3416.6,5.78681]
[1718734227177,2.92604,3417.6,3416.6,5.78681]
[1718734227462,2.92637,3417.2,3416.7,2.92679]
[1718734227640,2.92637,3417.2,3416.8,2.92665]
[1718734227955,2.92612,3417.5,3416.4,2.92704]
[1718734228267,3.0,3418.0,3416.8,2.92663]
[1718734228489,7.02,3418.2,3417.9,2.92575]
[1718734228642,2.92534,3418.4,3417.2,2.92636]
[1718734228963,7.62571393,3418.9,3417.4,2.92618]
[1718734228964,2.92502,3418.8,3417.4,2.92618]
[1718734229157,2.92502,3418.8,3418.4,2.92534]
[1718734229722,2.92502,3418.8,3418.5,2.92524]
[1718734229955,2.92481,3419.1,3418.5,2.92524]
[1718734229956,2.92475,3419.1,3418.5,2.92524]
[1718734230184,2.92495,3418.9,3418.5,2.92524]
[1718734230461,2.92542,3418.4,3418.0,2.92567]
[1718734230684,7.02,3419.5,3417.5,2.92609]
[1718734230685,2.9255,3418.3,3417.5,2.92609]
[1718734230863,7.02,3419.5,3418.0,2.9256]
[1718734230864,2.92497,3418.9,3418.0,2.9256]
[1718734231027,2.92524,3418.6,3418.2,2.92551]
[1718734231221,2.92528,3418.5,3418.1,2.92559]
[1718734231545,2.92528,3418.5,3418.1,2.92558]
[1718734232073,2.92546,3418.3,3417.9,2.92569]
[1718734232298,3.0,3419.1,3417.9,2.92573]
[1718734232466,3.0,3419.2,3418.5,2.92525]
[1718734232650,2.92474,3419.1,3418.5,2.92525]
[1718734232849,3.0,3419.2,3418.0,0.55]
[1718734232850,2.92526,3418.5,3418.0,0.55]
[1718734233146,5.92471,3419.2,3417.0,3.0]
[1718734233147,2.92544,3418.3,3417.0,3.0]
[1718734233486,2.92544,3418.3,3417.8,2.9258]
[1718734233651,3.0,3419.2,3418.1,2.92553]
[1718734233652,2.92483,3419.0,3418.1,2.92553]
[1718734234108,2.92483,3419.0,3418.4,2.9253]
[1718734234109,2.92504,3418.8,3418.4,2.9253]
[1718734234315,3.0,3418.9,3418.5,2.92518]
[1718734234316,5.92491,3418.9,3418.5,2.92518]
[1718734234899,2.92502,3418.8,3417.9,2.92573]
[1718734235249,2.92542,3418.4,3418.0,2.92568]
[1718734235389,5.92491,3418.9,3418.1,2.92559]
[1718734235933,2.92536,3418.4,3418.0,2.92567]
[1718734236329,2.77936,3418.4,3418.0,2.92567]
[1718734236930,2.77936,3418.4,3418.1,2.92558]
[1718734237118,2.92517,3418.6,3417.7,2.92589]
[1718734237295,2.92536,3418.4,3417.9,2.92569]
[1718734237495,2.92536,3418.4,3418.0,3.47561]
[1718734238041,2.92526,3418.5,3418.0,0.55]
[1718734238249,2.92484,3419.0,3418.5,2.92518]
[1718734238399,3.0,3418.9,3418.5,2.92518]
[1718734238849,5.92498,3418.9,3418.5,2.92518]
[1718734239054,5.92498,3418.9,3418.4,2.92532]
[1718734239055,3.0,3418.9,3418.4,2.92532]
[1718734239420,2.92465,3419.3,3418.7,2.92508]
[1718734239610,2.92441,3419.5,3419.1,2.92472]
[1718734239938,2.92441,3419.5,3418.9,2.92491]
[1718734239939,2.92459,3419.3,3418.9,2.92491]
[1718734240103,2.9245,3419.4,3419.0,3.47482]
[1718734240313,2.9245,3419.4,3418.8,2.92498]
[1718734240314,2.92451,3419.4,3418.8,2.92498]
[1718734240506,2.92457,3419.3,3418.8,2.92498]
[1718734240821,2.92432,3419.6,3419.0,2.92482]
[1718734241198,1.40196465,3420.3,3419.7,2.92414]
[1718734241401,2.92346,3420.6,3420.1,2.92382]
[1718734241659,9.4749,3421.2,3419.8,0.842414]
[1718734241940,2.92338,3420.7,3419.9,2.92403]
[1718734242226,2.92337,3420.8,3420.3,2.92371]
[1718734242550,2.92346,3420.7,3420.3,2.92371]
[1718734243238,2.92346,3420.7,3419.9,2.92403]
[1718734243445,2.92361,3420.5,3419.8,0.55]
[1718734243726,2.92373,3420.3,3419.9,2.92404]
[1718734244045,2.92357,3420.5,3420.1,2.92387]
[1718734244400,2.92357,3420.5,3419.8,3.47411]
[1718734244401,1.40196465,3421.0,3420.2,2.92378]
[1718734244707,2.92355,3420.5,3420.2,2.92379]
[1718734244933,2.92355,3420.5,3420.0,2.92396]
[1718734244934,2.92355,3420.5,3420.1,2.92387]
[1718734245249,2.92347,3420.6,3420.2,2.92379]
[1718734245540,2.92339,3420.7,3420.3,2.92371]
[1718734245891,2.92346,3420.6,3419.9,2.92405]
[1718734246095,2.92346,3420.6,3420.1,2.92388]
[1718734246821,2.92356,3420.5,3420.1,2.92388]
[1718734247424,3.0,3421.1,3420.1,2.92388]
[1718734247425,5.92311,3421.1,3420.3,2.9237]
[1718734247626,7.02,3421.2,3420.9,2.92317]
[1718734247801,2.92295,3421.2,3420.8,2.92328]
[1718734248110,2.923,3421.2,3419.8,7.88]
[1718734248299,2.92351,3420.6,3420.1,2.92384]
[1718734248504,2.92366,3420.4,3420.0,2.92396]
[1718734248731,2.92376,3420.3,3419.1,2.2752]
[1718734249034,1.40293105,3420.6,3419.4,2.92448]
[1718734249236,2.92355,3420.5,3419.9,2.92405]
[1718734249421,1.40293105,3420.7,3419.8,2.92406]
[1718734249621,2.92365,3420.4,3419.8,2.92407]
[1718734249833,2.92365,3420.4,3419.4,0.51352]
[1718734249834,2.92422,3419.8,3419.2,2.92464]
[1718734250146,2.92406,3419.9,3419.3,5.78455]
[1718734250366,2.92424,3419.7,3419.4,0.55]
[1718734250660,2.92447,3419.5,3419.1,2.92466]
[1718734250868,2.92458,3419.3,3418.6,2.92516]
[1718734251066,2.92458,3419.3,3418.7,2.925]
[1718734251226,2.92476,3419.1,3418.7,2.925]
[1718734251579,2.92476,3419.1,3418.6,0.85869136]
[1718734251580,2.92491,3419.0,3418.6,3.78385136]
[1718734251737,2.92466,3419.2,3418.6,2.92516]
[1718734251934,2.92492,3418.9,3418.5,2.92524]
[1718734252265,2.92484,3419.0,3418.6,2.92516]
[1718734252573,2.92483,3419.0,3418.3,2.92542]
[1718734252723,2.92501,3418.8,3418.4,2.92532]
[1718734252931,2.92492,3418.9,3418.2,2.92543]
[1718734253240,2.92507,3418.8,3418.4,2.92533]
[1718734253443,2.92475,3419.1,3418.7,2.925]
[1718734253767,2.92483,3419.0,3418.6,2.92515]
[1718734253968,2.92502,3418.8,3418.2,2.92551]
[1718734254131,2.92515,3418.7,3418.3,2.92542]
[1718734254476,2.925,3418.8,3418.2,2.92549]
[1718734254630,2.925,3418.8,3418.4,2.92534]
[1718734254830,2.92508,3418.7,3418.3,2.92541]
[1718734255076,2.92492,3418.9,3418.3,2.92541]
[1718734255369,1.40165361,3419.4,3418.4,2.92534]
[1718734255533,2.92476,3419.1,3418.7,2.92504]
[1718734255871,4.40165361,3419.6,3418.7,0.877554]
[1718734256075,7.02,3419.7,3419.1,2.92472]
[1718734256076,2.92442,3419.5,3419.1,2.92472]
[1718734256227,1.40165361,3419.8,3419.3,2.92456]
[1718734256438,2.92417,3419.8,3419.4,0.60840247]
[1718734256779,2.92426,3419.7,3419.4,0.60840247]
[1718734257066,2.92413,3419.9,3419.4,0.55]
[1718734257268,2.92433,3419.6,3419.3,3.47456]
[1718734257944,2.92415,3419.8,3419.4,2.92447]
[1718734258534,2.92415,3419.8,3419.3,3.47456]
[1718734258535,1.40165361,3419.9,3419.3,3.47456]
[1718734258772,2.92442,3419.5,3419.3,0.55]
[1718734259077,2.9245,3419.4,3419.2,0.55]
[1718734259231,2.92433,3419.6,3419.1,3.47473]
[1718734259430,2.92433,3419.6,3419.3,2.92457]
[1718734259702,2.92433,3419.6,3419.4,0.55]
[1718734259969,2.9244,3419.5,3418.3,0.8658042]
[1718734260186,2.9244,3419.5,3418.7,2.92504]
[1718734260187,2.92481,3419.1,3418.7,2.92504]
[1718734260528,2.92449,3419.4,3418.9,2.9249]